bitfinex/quotes_SOLUSD_20260224
["timestamp","ask_amount","ask_price","bid_price","bid_amount"]
[1771959435946,3.85489322,78.309,78.276,4.19633686]
[1771959438354,12.76666368,78.329,78.278,4.19633686]
[1771959439041,44.68332289,78.329,78.278,4.19633686]
[1771959440465,3.85489322,78.326,78.28,4.19633686]
[1771959444373,3.99036145,78.324,78.282,3.86473464]
[1771959446848,4.08047281,78.322,78.284,3.83332695]
[1771959448962,4.08047281,78.32,78.286,3.83332695]
[1771959451972,31.91512793,78.333,78.288,3.83332695]
[1771959451973,4.08047281,78.325,78.288,3.83332695]
[1771959453551,4.08047281,78.331,78.29,3.83332695]
[1771959453753,16.84697351,78.33,78.29,3.83332695]
[1771959453956,4.08047281,78.329,78.29,3.83332695]
[1771959457062,4.08047281,78.329,78.292,3.83332695]
[1771959459074,4.08047281,78.329,78.294,3.83332695]
[1771959459293,4.08047281,78.334,78.294,3.83332695]
[1771959462866,4.08047281,78.332,78.296,3.83332695]
[1771959463366,4.08047281,78.34,78.296,3.83332695]
[1771959463571,4.08047281,78.351,78.296,3.83332695]
[1771959465781,4.08047281,78.349,78.298,3.83332695]
[1771959467774,4.08047281,78.347,78.3,3.83332695]
[1771959469992,4.08047281,78.36,78.305,3.83332695]
[1771959470193,4.08047281,78.36,78.306,3.83332695]
[1771959471497,4.08047281,78.36,78.31,3.69383402]
[1771959471687,4.08047281,78.36,78.311,3.83332695]
[1771959472086,4.08047281,78.358,78.311,3.83332695]
[1771959473698,4.08047281,78.356,78.313,3.83332695]
[1771959477483,3.94707225,78.354,78.314,12.76910897]
[1771959477804,3.94707225,78.354,78.315,3.9699774]
[1771959478191,5.01159344,78.35,78.304,3.9699774]
[1771959478393,3.94707225,78.349,78.304,3.9699774]
[1771959480988,3.94707225,78.347,78.306,3.9699774]
[1771959482595,31.90270024,78.364,78.306,3.9699774]
[1771959482897,3.94707225,78.358,78.309,3.9699774]
[1771959483112,3.94707225,78.356,78.314,3.9699774]
[1771959484312,3.94707225,78.368,78.314,3.9699774]
[1771959485105,3.94707225,78.368,78.318,3.9699774]
[1771959485307,3.94707225,78.368,78.323,3.9699774]
[1771959486610,3.94707225,78.368,78.325,3.9699774]
[1771959486813,3.94707225,78.367,78.325,3.9699774]
[1771959488705,3.94707225,78.367,78.327,3.9699774]
[1771959489908,3.94707225,78.381,78.33,3.9699774]
[1771959490209,3.94707225,78.381,78.334,3.9699774]
[1771959490711,3.94707225,78.379,78.336,3.9699774]
[1771959493995,3.94707225,78.377,78.338,3.9699774]
[1771959499613,3.94707225,78.375,78.34,3.9699774]
[1771959501301,3.94707225,78.375,78.325,3.9699774]
[1771959501717,3.94707225,78.373,78.328,3.9699774]
[1771959502720,3.94707225,78.388,78.328,3.9699774]
[1771959504608,3.922708,78.386,78.333,4.14747143]
[1771959507330,3.92165668,78.379,78.334,12.7658488]
[1771959508205,3.92165668,78.379,78.334,16.83349511]
[1771959508405,3.92165668,78.379,78.335,4.06764631]
[1771959512241,3.92165668,78.377,78.337,4.06764631]
[1771959514507,3.92165668,78.375,78.337,4.06764631]
[1771959515306,3.92165668,78.375,78.339,4.06764631]
[1771959518130,3.92165668,78.373,78.339,4.06764631]
[1771959520418,3.92165668,78.371,78.339,4.06764631]
[1771959524024,3.92165668,78.373,78.341,4.06764631]
[1771959524228,2.82165668,78.373,78.342,4.06764631]
[1771959524427,44.64912168,78.389,78.342,4.06764631]
[1771959525637,0.1,78.39,78.344,4.06764631]
[1771959526344,3.92165668,78.389,78.344,4.06764631]
[1771959529152,3.92165668,78.387,78.346,4.06764631]
[1771959531449,3.92165668,78.385,78.348,4.06764631]
[1771959535060,4.18425729,78.383,78.35,3.94522612]
[1771959540258,4.18425729,78.381,78.352,3.94522612]
[1771959540559,4.18425729,78.381,78.342,3.94522612]
[1771959543462,4.18425729,78.369,78.325,3.94522612]
[1771959543650,4.18425729,78.359,78.325,3.94522612]
[1771959549666,12.76193879,78.358,78.326,12.76715266]
[1771959549868,4.18425729,78.357,78.327,3.94522612]
[1771959550062,16.94548926,78.363,78.327,3.94522612]
[1771959550250,4.18425729,78.362,78.311,102.0]
[1771959550450,4.18425729,78.349,78.317,3.94522612]
[1771959553074,4.18425729,78.347,78.319,3.94522612]
[1771959555271,31.906085,78.355,78.319,3.94522612]
[1771959555272,12.76389349,78.346,78.319,3.94522612]
[1771959555573,4.18425729,78.345,78.319,3.94522612]
[1771959556077,4.18425729,78.345,78.321,3.94522612]
[1771959558558,4.18425729,78.345,78.323,3.94522612]
[1771959560056,31.906085,78.355,78.323,3.94522612]
[1771959560057,4.18425729,78.343,78.323,3.94522612]
[1771959560852,4.18425729,78.341,78.323,3.94522612]
[1771959561657,4.18425729,78.341,78.293,102.0]
[1771959561658,4.18425729,78.341,78.305,3.94522612]
[1771959561855,4.18425729,78.339,78.3,3.94522612]
[1771959562080,4.18425729,78.329,78.299,12.77148915]
[1771959562269,4.18425729,78.329,78.27,0.2]
[1771959562574,4.18425729,78.319,78.275,3.94522612]
[1771959563081,4.18425729,78.319,78.274,3.69383402]
[1771959563082,4.18425729,78.317,78.277,3.94522612]
[1771959564875,3.81068171,78.315,78.279,3.91411745]
[1771959567379,4.09046554,78.313,78.281,4.18477006]
[1771959568681,4.09046554,78.327,78.283,4.18477006]
[1771959569077,4.09046554,78.319,78.283,4.18477006]
[1771959573083,4.09046554,78.317,78.285,4.18477006]
[1771959577396,4.09046554,78.315,78.271,4.18477006]
[1771959577702,4.09046554,78.309,78.272,4.18477006]
[1771959578809,5.01093958,78.35,78.275,4.18477006]
[1771959578974,4.09046554,78.339,78.277,4.18477006]
[1771959579396,4.09046554,78.329,78.277,4.18477006]
[1771959579594,4.09046554,78.319,78.279,4.18477006]
[1771959583785,12.7684568,78.318,78.28,12.77465508]
[1771959583985,4.09046554,78.317,78.281,4.18477006]
[1771959586080,4.09046554,78.322,78.283,4.18477006]
[1771959586398,4.09046554,78.333,78.284,4.18477006]
[1771959586584,4.09046554,78.333,78.287,4.18477006]
[1771959588479,4.09046554,78.333,78.289,4.18477006]
[1771959590576,4.09046554,78.338,78.291,4.18477006]
[1771959590894,4.09046554,78.338,78.296,4.18477006]
[1771959591096,4.09046554,78.338,78.297,4.18477006]
[1771959593504,4.09046554,78.338,78.299,4.18477006]
[1771959595199,3.8033658,78.336,78.299,4.18477006]
[1771959595429,3.8033658,78.334,78.3,48.83397389]
[1771959595602,3.8033658,78.329,78.3,12.77139208]
[1771959595784,3.8033658,78.319,78.296,12.77200423]
[1771959596892,3.8033658,78.319,78.296,4.13410161]
[1771959599386,3.8033658,78.319,78.298,4.13410161]
[1771959600199,3.8033658,78.338,78.298,4.13410161]
[1771959601305,12.76535991,78.337,78.3,4.13410161]
[1771959601607,3.8033658,78.356,78.3,4.13410161]
[1771959601810,3.8033658,78.355,78.3,4.13410161]
[1771959602309,3.8033658,78.349,78.3,4.13410161]
[1771959602603,3.8033658,78.339,78.3,4.13410161]
[1771959603508,3.8033658,78.337,78.302,4.13410161]
[1771959604907,3.8033658,78.335,78.296,4.13410161]
[1771959608395,3.8033658,78.319,78.286,4.13410161]
[1771959613816,12.76713518,78.327,78.288,4.13410161]
[1771959614000,16.56890359,78.336,78.288,4.13410161]
[1771959614309,3.8033658,78.335,78.288,4.13410161]
[1771959616010,3.8033658,78.334,78.29,4.13410161]
[1771959617113,3.8033658,78.332,78.292,4.13410161]
[1771959620222,3.8033658,78.33,78.294,4.13410161]
[1771959622020,3.8033658,78.329,78.294,4.13410161]
[1771959622213,3.8033658,78.327,78.291,4.13410161]
[1771959625828,4.00171468,78.325,78.293,3.80472371]
[1771959627513,4.00171468,78.325,78.269,3.69383402]
[1771959627514,5.01537588,78.3,78.258,3.80472371]
[1771959627715,4.00171468,78.289,78.267,3.80472371]
[1771959627908,4.00171468,78.299,78.272,3.80472371]
[1771959629522,4.00171468,78.297,78.272,3.80472371]
[1771959631715,4.00171468,78.295,78.272,3.80472371]
[1771959632225,4.00171468,78.295,78.273,12.77579752]
[1771959632530,4.00171468,78.295,78.274,3.80472371]
[1771959633538,12.77189556,78.297,78.274,3.80472371]
[1771959633917,16.77361024,78.297,78.274,3.80472371]
[1771959634318,4.00171468,78.296,78.274,3.80472371]
[1771959635020,4.00171468,78.289,78.27,0.2]
[1771959635739,4.00171468,78.289,78.27,4.00472371]
[1771959636114,3.74632598,78.289,78.27,4.00472371]
[1771959636523,3.74632598,78.289,78.271,3.80472371]
[1771959640332,4.00171468,78.294,78.273,3.80472371]
[1771959640839,4.00171468,78.316,78.273,3.80472371]
[1771959641140,4.00171468,78.309,78.273,3.80472371]
[1771959643351,4.00171468,78.299,78.273,3.80472371]
[1771959643649,4.00171468,78.299,78.274,3.80472371]
[1771959646646,4.00171468,78.307,78.276,3.80472371]
[1771959646828,2.47215037,96.317,78.276,3.80472371]
[1771959646829,4.00171468,78.339,78.276,3.80472371]
[1771959647025,4.00171468,78.339,78.279,3.80472371]
[1771959648929,4.00171468,78.337,78.284,3.80472371]
[1771959650946,4.00171468,78.335,78.286,3.80472371]
[1771959653352,4.00171468,78.333,78.288,3.80472371]
[1771959656748,4.11562475,78.331,78.29,4.09154697]
[1771959660758,4.11562475,78.342,78.295,4.09154697]
[1771959661158,4.11562475,78.352,78.295,4.09154697]
[1771959661345,4.11562475,78.352,78.298,5.36086188]
[1771959661653,4.11562475,78.362,78.302,4.09154697]
[1771959662162,4.11562475,78.362,78.301,3.69383402]
[1771959662163,4.11562475,78.362,78.307,4.09154697]
[1771959663057,4.11562475,78.349,78.309,4.09154697]
[1771959663366,4.11562475,78.339,78.309,4.09154697]
[1771959666359,4.11562475,78.337,78.311,4.09154697]
[1771959667667,4.11562475,78.337,78.313,4.09154697]
[1771959669251,4.11562475,78.336,78.313,4.09154697]
[1771959669652,4.11562475,78.336,78.315,4.09154697]
[1771959670952,4.11562475,78.341,78.315,4.09154697]
[1771959672668,4.11562475,78.341,78.316,12.76878287]
[1771959672873,4.11562475,78.341,78.317,4.09154697]
[1771959673371,4.11562475,78.339,78.317,4.09154697]
[1771959674673,4.11562475,78.359,78.319,4.09154697]
[1771959674978,4.11562475,78.368,78.319,4.09154697]
[1771959678176,4.11562475,78.366,78.321,4.09154697]
[1771959682060,4.11562475,78.366,78.321,4.09154697]
[1771959684374,4.2022475,78.364,78.323,4.073077]
[1771959685503,4.2022475,78.364,78.322,44.68731645]
[1771959685504,3.95884083,78.365,78.326,4.05644061]
[1771959685686,16.71877647,78.371,78.326,4.05644061]
[1771959686069,3.95884083,78.37,78.326,4.05644061]
[1771959689166,5.11615013,78.39,78.328,4.05644061]
[1771959689167,12.75931625,78.375,78.328,4.05644061]
[1771959689377,12.75689191,78.389,78.333,4.05644061]
[1771959689594,3.95884083,78.388,78.333,4.05644061]
[1771959691197,3.95884083,78.388,78.338,4.05644061]
[1771959693580,3.95884083,78.388,78.343,4.05644061]
[1771959694594,3.95884083,78.388,78.342,3.69383402]
[1771959694595,3.95884083,78.388,78.348,4.05644061]
[1771959695105,3.95884083,78.388,78.35,4.05644061]
[1771959699001,3.95884083,78.388,78.352,4.05644061]
[1771959701099,3.95884083,78.388,78.354,4.05644061]
[1771959701992,3.95884083,78.386,78.354,4.05644061]
[1771959703679,3.95884083,78.386,78.356,4.05644061]
[1771959705811,3.95884083,78.386,78.357,12.76210166]
[1771959705998,3.95884083,78.386,78.358,4.05644061]
[1771959710007,3.95884083,78.386,78.36,4.05644061]
[1771959710307,3.95884083,78.384,78.36,4.05644061]
[1771959712113,4.05884083,78.4,78.362,4.05644061]
[1771959712408,0.1,78.4,78.365,4.05644061]
[1771959714117,0.1,78.4,78.346,51.05499535]
[1771959714118,0.1,78.4,78.367,4.05644061]
[1771959715196,0.1,78.4,78.369,3.95898509]
[1771959715709,4.21342091,78.4,78.369,3.95898509]
[1771959716897,0.1,78.4,78.369,3.95898509]
[1771959717099,31.88034511,78.419,78.369,3.95898509]
[1771959717100,0.1,78.42,78.373,3.95898509]
[1771959717303,0.1,78.42,78.378,3.95898509]
[1771959717617,0.1,78.44,78.379,3.95898509]
[1771959717823,5.10647308,78.47,78.457,3.69383402]
[1771959717824,1e-08,78.47,78.457,3.69383402]
[1771959718014,12.73360984,78.533,78.457,3.69383402]
[1771959718328,71.39752575,78.616,78.457,3.69383402]
[1771959718329,4.11342091,78.528,78.471,3.95898509]
[1771959718496,4.11342091,78.528,78.454,6.66990007]
[1771959718702,5.00647308,78.53,78.458,3.95898509]
[1771959718902,4.11342091,78.538,78.459,5.36086188]
[1771959719099,4.11342091,78.538,78.484,5.36086188]
[1771959719296,4.11342091,78.538,78.492,3.95898509]
[1771959719498,4.11342091,78.538,78.488,44.59280399]
[1771959719499,4.11342091,78.529,78.488,12.74080114]
[1771959719717,4.11342091,78.529,78.489,3.95898509]
[1771959720095,4.11342091,78.529,78.472,50.97324346]
[1771959720096,4.11342091,78.519,78.472,3.95898509]
[1771959720415,4.11342091,78.489,78.445,3.95898509]
[1771959720615,4.11342091,78.469,78.428,35.83513682]
[1771959720801,11.13582207,78.49,78.431,3.69383402]
[1771959721007,11.13582207,78.48,78.432,3.95898509]
[1771959721224,11.13582207,78.46,78.426,12.75087343]
[1771959721424,11.13582207,78.45,78.401,3.95898509]
[1771959721725,12.74551039,78.459,78.401,3.95898509]
[1771959721924,11.13582207,78.45,78.401,3.95898509]
[1771959722323,44.60928637,78.459,78.401,3.95898509]
[1771959722324,11.13582207,78.44,78.401,3.95898509]
[1771959722904,3.90726906,78.439,78.401,3.95898509]
[1771959723430,3.90726906,78.439,78.405,3.69383402]
[1771959723431,3.90726906,78.438,78.405,3.69383402]
[1771959723627,3.90726906,78.429,78.398,3.95898509]
[1771959723920,3.90614472,78.445,78.401,3.95898509]
[1771959724324,3.90614472,78.461,78.401,3.95898509]
[1771959724715,3.90614472,78.459,78.401,3.95898509]
[1771959725814,3.90393462,78.457,78.406,3.95898509]
[1771959727718,11.13582207,78.45,78.406,3.95898509]
[1771959728037,3.90613236,78.449,78.405,3.69383402]
[1771959728419,3.90613236,78.449,78.406,3.95898509]
[1771959728636,3.90613236,78.449,78.389,31.89194877]
[1771959728637,3.90613236,78.439,78.398,3.95898509]
[1771959730029,3.9082799,78.437,78.399,16.71424982]
[1771959730227,3.9082799,78.437,78.4,3.95898509]
[1771959730626,3.9082799,78.452,78.4,3.95898509]
[1771959731232,3.9082799,78.452,78.403,3.95898509]
[1771959731614,3.9093352,78.449,78.403,3.95898509]
[1771959732314,3.91037839,78.447,78.405,3.95898509]
[1771959734434,3.91242895,78.445,78.407,3.95898509]
[1771959735314,3.9134366,78.439,78.396,16.71457947]
[1771959735515,3.9134366,78.439,78.397,3.95898509]
[1771959735915,3.91443267,78.429,78.396,12.75559438]
[1771959736331,11.13582207,78.43,78.379,3.69383402]
[1771959736332,3.91443267,78.427,78.389,3.95898509]
[1771959737320,3.91541731,78.44,78.392,3.95898509]
[1771959737742,3.91639063,78.438,78.392,3.95898509]
[1771959738724,3.91735278,78.436,78.394,3.95898509]
[1771959740140,11.13582207,78.43,78.394,3.95898509]
[1771959740445,3.91830388,78.409,78.377,16.71769652]
[1771959740644,3.91830388,78.409,78.343,5.36086188]
[1771959740645,3.91924405,78.399,78.37,3.95898509]
[1771959740946,3.91924405,78.397,78.368,12.7602744]
[1771959741123,3.91924405,78.389,78.332,3.95898509]
[1771959741441,3.91924405,78.389,78.331,44.68218202]
[1771959741442,3.91924405,78.379,78.335,3.95898509]
[1771959741622,12.75542743,78.398,78.335,3.95898509]
[1771959741942,3.92017342,78.397,78.335,3.95898509]
[1771959742331,3.92017342,78.389,78.335,3.95898509]
[1771959743531,3.92109211,78.393,78.34,3.95898509]
[1771959744347,3.92289797,78.389,78.34,3.95898509]
[1771959745126,12.75622308,78.394,78.34,3.95898509]
[1771959745429,51.00705178,78.421,78.339,3.69383402]
[1771959745430,3.92466259,78.419,78.347,3.87910733]
[1771959745728,3.92466259,78.419,78.346,197.8403492]
[1771959745729,3.92466259,78.417,78.354,3.87910733]
[1771959745944,3.92466259,78.417,78.356,3.87910733]
[1771959747031,3.92638689,78.425,78.356,3.87910733]
[1771959747423,12.75119861,78.424,78.357,159.52627077]
[1771959747629,3.92638689,78.423,78.361,3.87910733]
[1771959750424,3.9288998,78.409,78.366,3.87910733]
[1771959751238,16.68069657,78.426,78.366,3.87910733]
[1771959751526,3.92971826,78.425,78.366,3.87910733]
[1771959751741,3.93052733,78.433,78.366,3.87910733]
[1771959752046,3.93052733,78.433,78.375,3.87910733]
[1771959753239,3.93052733,78.433,78.38,3.87910733]
[1771959753545,3.9313271,78.461,78.385,3.87910733]
[1771959754048,3.93211768,78.458,78.385,3.87910733]
[1771959755051,3.93289919,78.456,78.39,3.87910733]
[1771959757254,3.93443537,78.454,78.395,3.87910733]
[1771959757852,3.93519026,78.449,78.395,3.87910733]
[1771959759452,3.93593647,78.447,78.4,3.87910733]
[1771959761356,50.97681505,78.468,78.401,16.63404668]
[1771959761357,3.93740328,78.445,78.401,16.63404668]
[1771959761659,3.93740328,78.439,78.393,3.87910733]
[1771959763955,12.74892271,78.438,78.394,12.75607827]
[1771959764159,3.93954093,78.437,78.395,3.87910733]
[1771959766067,3.94092541,78.435,78.397,3.87910733]
[1771959769066,3.94294308,78.433,78.399,3.87910733]
[1771959771771,3.94489202,78.431,78.401,3.87910733]
[1771959772061,3.94489202,78.431,78.4,12.75510204]
[1771959772062,3.94489202,78.431,78.396,12.75562677]
[1771959772268,3.94489202,78.431,78.397,3.87910733]
[1771959773054,3.94489202,78.431,78.396,12.75562677]
[1771959773855,3.94615429,78.429,78.391,16.63567377]
[1771959775079,3.40934335,78.419,78.37,3.87910733]
[1771959775264,3.40934335,78.419,78.372,3.87813665]
[1771959775655,44.62578094,78.43,78.372,3.87813665]
[1771959775656,3.40476489,78.409,78.372,3.87813665]
[1771959776059,3.40476489,78.399,78.366,12.76048015]
[1771959776372,3.40476489,78.389,78.362,12.76119976]
[1771959776853,3.40476489,78.389,78.358,16.64000863]
[1771959778179,3.39580147,78.387,78.344,3.87813665]
[1771959778474,3.39580147,78.379,78.344,3.69383402]
[1771959778769,3.39580147,78.379,78.342,3.87813665]
[1771959779176,3.39580147,78.379,78.344,3.69383402]
[1771959779676,3.39580147,78.379,78.344,7.57197067]
[1771959780071,3.39580147,78.379,78.345,3.87813665]
[1771959780378,3.38705849,78.395,78.347,3.87813665]
[1771959780572,3.38705849,78.404,78.35,3.87813665]
[1771959780775,50.99833651,78.434,78.349,3.69383402]
[1771959780776,3.38284551,78.419,78.352,3.87813665]
[1771959780966,3.38284551,78.419,78.355,3.87813665]
[1771959781666,38.4,78.496,78.355,3.87813665]
[1771959781667,3.38284551,78.426,78.362,3.87813665]
[1771959781858,3.37867313,78.433,78.366,3.87813665]
[1771959782276,12.749898,78.432,78.371,3.87813665]
[1771959782461,3.37867313,78.439,78.371,3.87813665]
[1771959782661,3.37867313,78.459,78.379,3.69383402]
[1771959782965,3.37867313,78.459,78.384,3.87813665]
[1771959783463,3.37867313,78.459,78.393,3.87813665]
[1771959783975,3.37037959,78.47,78.403,3.87813665]
[1771959784180,3.37037959,78.47,78.403,3.77246809]
[1771959784362,3.47604815,78.468,78.407,3.69383402]
[1771959784868,50.95573976,78.5,78.404,210.44844648]
[1771959784869,3.47204917,78.476,78.411,3.69383402]
[1771959785066,12.74205653,78.481,78.411,3.69383402]
[1771959785264,11.17576219,78.46,78.404,44.64057955]
[1771959785471,3.47204917,78.459,78.404,44.64057955]
[1771959786186,3.47204917,78.459,78.405,3.87813665]
[1771959786380,11.17576219,78.47,78.387,51.02882227]
[1771959786381,3.46808683,78.469,78.41,3.87813665]
[1771959786883,3.46421271,78.469,78.41,3.87813665]
[1771959788486,3.46033299,78.467,78.415,3.87813665]
[1771959790609,3.46033299,78.467,78.411,44.63659435]
[1771959790610,3.46033299,78.467,78.42,3.87813665]
[1771959791180,12.74437335,78.466,78.42,3.87813665]
[1771959791376,3.44890482,78.465,78.42,3.87813665]
[1771959791776,3.44518538,78.488,78.42,3.87813665]
[1771959792474,3.44518538,78.479,78.425,3.87813665]
[1771959794489,3.43794062,78.477,78.427,3.87813665]
[1771959795778,3.4343227,78.475,78.429,3.87813665]
[1771959795979,3.43083182,78.469,78.429,3.87813665]
[1771959797693,3.42733709,78.467,78.431,3.87813665]
[1771959799784,3.42733709,78.467,78.433,3.87813665]
[1771959801493,3.42733709,78.467,78.434,12.74957288]
[1771959801687,3.42733709,78.467,78.435,3.87813665]
[1771959802796,3.40711919,78.466,78.435,3.87813665]
[1771959803795,3.40711919,78.466,78.434,44.6235051]
[1771959803796,3.40389875,78.464,78.436,16.62738444]
[1771959804699,3.40389875,78.464,78.426,12.75087343]
[1771959805111,3.40389875,78.464,78.427,3.78996388]
[1771959807099,3.38842225,78.459,78.42,3.78996388]
[1771959807309,3.38842225,78.459,78.424,3.78996388]
[1771959809402,3.38246773,78.457,78.424,3.78996388]
[1771959809589,3.38246773,78.457,78.426,3.78996388]
[1771959810582,3.38246773,78.457,78.413,31.88234143]
[1771959810583,3.38246773,78.457,78.421,12.75156277]
[1771959810999,44.60985495,78.458,78.422,3.78996388]
[1771959811184,3.37670169,78.477,78.422,3.78996388]
[1771959812302,3.37383632,78.469,78.424,3.78996388]
[1771959814385,3.36820324,78.467,78.426,3.78996388]
[1771959814585,3.36820324,78.459,78.426,3.78996388]
[1771959815613,3.36820324,78.459,78.394,153.02426536]
[1771959815614,3.36543447,78.439,78.386,3.78996388]
[1771959815803,5.36086188,78.462,78.386,3.78996388]
[1771959815804,3.36267893,78.429,78.386,3.78996388]
[1771959816210,3.36267893,78.419,78.386,3.78996388]
[1771959816790,3.36000692,78.417,78.386,3.78996388]
[1771959817008,3.36000692,78.417,78.321,51.07154026]
[1771959817009,3.36000692,78.399,78.373,3.78996388]
[1771959817888,3.36000692,78.399,78.369,12.7601475]
[1771959818087,3.36000692,78.399,78.369,16.55011138]
[1771959819302,3.35481091,78.397,78.369,16.55011138]
[1771959820002,3.35217609,78.414,78.37,3.78996388]
[1771959820211,3.35217609,78.414,78.369,44.66051626]
[1771959820212,11.17576219,78.42,78.373,3.78996388]
[1771959820511,3.35217609,78.429,78.373,3.78996388]
[1771959820709,12.75066393,78.428,78.373,3.78996388]
[1771959821006,3.34962227,78.427,78.373,3.78996388]
[1771959821594,16.1004957,78.426,78.375,3.78996388]
[1771959823202,3.34460499,78.425,78.375,3.78996388]
[1771959823596,3.34460499,78.419,78.375,3.78996388]
[1771959824299,3.34460499,78.419,78.368,3.69383402]
[1771959824300,16.09431356,78.418,78.377,3.78996388]
[1771959824698,3.33969891,78.417,78.377,3.78996388]
[1771959827908,3.33969891,78.417,78.379,3.78996388]
[1771959828128,12.75249948,78.416,78.379,3.78996388]
[1771959828418,3.33249317,78.415,78.379,3.78996388]
[1771959831705,3.32336707,78.413,78.373,3.78996388]
[1771959832403,3.32336707,78.413,78.374,3.78996388]
[1771959832605,12.75282475,78.414,78.374,3.78996388]
[1771959832807,3.32119855,78.426,78.374,3.78996388]
[1771959834517,3.31901683,78.424,78.376,3.78996388]
[1771959834817,31.87249754,78.438,78.378,3.69383402]
[1771959835007,3.31689983,78.438,78.379,3.78996388]
[1771959835213,12.74908525,78.437,78.379,3.78996388]
[1771959835515,3.31428939,78.436,78.379,3.78996388]
[1771959836202,11.16740157,78.43,78.379,3.78996388]
[1771959836514,3.31176868,78.429,78.379,3.78996388]
[1771959837019,3.30923791,78.427,78.384,3.97678161]
[1771959839431,3.30923791,78.427,78.386,3.97678161]
[1771959839913,3.30176585,78.425,78.386,3.97678161]
[1771959841016,3.29933866,78.419,78.386,3.97678161]
[1771959841312,63.74491563,78.438,78.376,3.97678161]
[1771959841313,3.29933866,78.407,78.376,3.97678161]
[1771959842804,3.29933866,78.407,78.378,3.97678161]
[1771959843210,3.29454836,78.405,78.377,12.75884506]
[1771959843402,3.29454836,78.399,78.367,12.76035142]
[1771959843810,3.29220556,78.389,78.367,12.76035142]
[1771959846418,3.29220556,78.389,78.367,3.97678161]
[1771959847407,8.28909786,78.38,78.357,3.97678161]
[1771959847813,5.0037255,78.4,78.357,3.97678161]
[1771959848013,3.28309794,78.418,78.357,3.97678161]
[1771959848214,5.0037255,78.41,78.357,3.97678161]
[1771959848511,3.28309794,78.409,78.357,3.97678161]
[1771959849728,3.27874117,78.399,78.362,3.97678161]
[1771959850722,3.27657759,78.407,78.364,3.97678161]
[1771959851839,5.0037255,78.42,78.367,3.97678161]
[1771959852008,16.02639687,78.419,78.367,3.97678161]
[1771959852209,3.27438525,78.409,78.367,3.97678161]
[1771959852418,44.63204069,78.419,78.367,3.97678161]
[1771959852419,5.0037255,78.4,78.367,3.97678161]
[1771959853204,5.0037255,78.4,78.369,3.97678161]
[1771959853610,8.27600183,78.4,78.369,3.97678161]
[1771959853824,8.27396192,78.4,78.369,3.97678161]
[1771959854526,3.27023642,78.398,78.369,3.97678161]
[1771959855821,3.27023642,78.398,78.37,12.75998468]
[1771959856628,3.27023642,78.398,78.371,3.97678161]
[1771959857132,3.26413746,78.396,78.371,3.97678161]
[1771959857931,3.26413746,78.396,78.371,3.77506378]
[1771959858116,3.26413746,78.396,78.372,12.75965906]
[1771959860119,3.26413746,78.396,78.367,12.76047315]
[1771959860323,3.26413746,78.396,78.367,16.73725476]
[1771959861255,31.88328698,78.411,78.35,63.81583179]
[1771959861256,3.4585566,78.389,78.35,3.97678161]
[1771959864440,3.45177963,78.387,78.352,4.06986264]
[1771959865517,3.45177963,78.387,78.354,3.70344778]
[1771959867012,12.75704047,78.389,78.354,3.70344778]
[1771959867213,5.0037255,78.42,78.357,3.70344778]
[1771959867422,3.44524079,78.425,78.357,3.70344778]
[1771959867634,3.44524079,78.425,78.353,159.53441475]
[1771959867635,3.44524079,78.419,78.362,3.70344778]
[1771959869841,3.44049389,78.417,78.364,3.70344778]
[1771959871122,8.44269209,78.41,78.364,3.70344778]
[1771959871337,3.43896659,78.41,78.364,3.70344778]
[1771959873343,5.0037255,78.44,78.363,12.76112451]
[1771959873344,5.0037255,78.4,78.363,12.76112451]
[1771959873544,5.0037255,78.38,78.353,31.90650205]
[1771959874019,5.0037255,78.4,78.353,31.90650205]
[1771959874020,5.0037255,78.39,78.353,31.90650205]
[1771959874546,5.0037255,78.38,78.354,12.76259029]
[1771959876543,5.0037255,78.37,78.345,12.76405641]
[1771959877240,5.0037255,78.37,78.338,4.090237]
[1771959878943,44.66051626,78.369,78.331,4.090237]
[1771959879244,5.0037255,78.36,78.331,4.090237]
[1771959880544,17.76546513,78.36,78.332,4.090237]
[1771959881253,5.36086188,78.399,78.332,4.090237]
[1771959881454,5.0037255,78.37,78.332,4.090237]
[1771959882327,5.0037255,78.38,78.332,4.090237]
[1771959882529,5.0037255,78.39,78.335,4.090237]
[1771959882836,12.75689191,78.389,78.337,4.090237]
[1771959883537,12.75689191,78.389,78.34,4.090237]
[1771959884035,12.75689191,78.389,78.345,4.090237]
[1771959886047,3.69383402,78.426,78.345,4.090237]
[1771959886048,12.75363797,78.409,78.345,4.090237]
[1771959886356,44.6377329,78.409,78.35,4.090237]
[1771959887737,5.0037255,78.4,78.35,4.090237]
[1771959888948,5.0037255,78.41,78.355,4.090237]
[1771959890751,0.02039985,78.408,78.357,4.090237]
[1771959891742,12.75363797,78.409,78.357,4.090237]
[1771959892054,12.75363797,78.409,78.356,44.66792587]
[1771959892055,12.75201162,78.419,78.36,4.090237]
[1771959892652,0.02127986,78.418,78.36,4.090237]
[1771959895136,0.02127986,78.418,78.361,44.66507573]
[1771959895340,0.02127986,78.418,78.365,4.090237]
[1771959897344,0.02127986,78.418,78.367,4.090237]
[1771959899962,5.00598403,78.41,78.369,4.090237]